Cogmind - Beta 16.1 @@@ ROGUE MODE // 2026.02.18 @ 20:35:42 Player: Tereza Result: Self-destructed Performance ------------- Evolutions (2) 1000 Regions Visited (3) 600 Robots Destroyed (27) 135 Value Destroyed (613) 613 Prototype IDs (14) 280 Alien Tech Used (0) 0 Bonus (0) 0 TOTAL SCORE: 2628 Bonus ------- None Cogmind --------- Core Integrity 550/550 Matter 162/300 Energy 100/100 System Corruption 0% Temperature Cool (0) Movement Hovering (232) Ox3 Location -8/Materials Parts ------- > --- POWER (1) -------- (None) > --- PROPULSION (3) --- Airjet Airjet Airjet > --- UTILITY (2) ------ Large Storage Unit Makeshift Light Armor Plating > --- WEAPON (5) ------- 1B-0RG's Assimilator > --- INVENTORY (15) --- Advanced Treads Aluminum Leg Medium Storage Unit Seismic Detector Improved Targeting Computer Hacking Suite Subdweller Laser Light Assault Rifle Light Assault Rifle Light Assault Rifle Shotgun Battle Cannon Grenade Launcher Datajack Peak State ------------ > --- POWER ------------ (None) > --- PROPULSION ------- Airjet Airjet Airjet > --- UTILITY ---------- Large Storage Unit Makeshift Light Armor Plating > --- WEAPON ----------- 1B-0RG's Assimilator > --- INVENTORY -------- Advanced Treads Aluminum Leg Medium Storage Unit Seismic Detector Improved Targeting Computer Hacking Suite Subdweller Laser Light Assault Rifle Light Assault Rifle Light Assault Rifle Shotgun Battle Cannon Grenade Launcher Datajack [Rating: 81] Favorites ----------- Power Improved Ion Engine Engine Improved Ion Engine Propulsion Aluminum Leg Treads Light Treads Leg Aluminum Leg Wheel Subdweller Monowheel Hover Unit Airjet Utility Medium Storage Unit Device Seismic Detector Storage Medium Storage Unit Protection Weapon Shielding Weapon Light Assault Rifle Energy Gun Medium Laser Ballistic Gun Light Assault Rifle Launcher Grenade Launcher Special Melee Weapon 1B-0RG's Assimilator Build | -11 -10 -10 -8 ------- Run | Yrd Mat Sub Mat Slots Evolved 4 | . . . 4 Power . | . . . . Propulsion 1 | . . . 1 Utility . | . . . . Weapon 3 | . . . 3 Parts Attached 34 | 6 18 5 5 Power 3 | 1 2 . . Engine 3 | 1 2 . . Core . | . . . . Reactor . | . . . . Propulsion 14 | 2 5 3 4 Treads 4 | 2 1 . 1 Leg 6 | . 4 2 . Wheel 1 | . . 1 . Hover 3 | . . . 3 Flight . | . . . . Utility 7 | 1 5 1 . Device 1 | . 1 . . Storage 3 | 1 2 . . Processor . | . . . . Hackware . | . . . . Protection 3 | . 2 1 . Artifact . | . . . . Weapon 10 | 2 6 1 1 Energy Gun 2 | . 2 . . Energy Cannon . | . . . . Ballistic Gun 6 | 2 3 1 . Ballistic Cannon . | . . . . Launcher 1 | . 1 . . Special Weapon . | . . . . Impact Weapon . | . . . . Slashing Weapon . | . . . . Piercing Weapon . | . . . . Special Melee Weapon 1 | . . . 1 Unidentified Prototypes 1 | . . . 1 Parts Lost 10 | . 5 4 1 Power 2 | . 1 . 1 Propulsion 5 | . 2 3 . Utility . | . . . . Weapon 3 | . 2 1 . Highest Loss Streak 4 | . 4 3 1 To Critical Strikes . | . . . . Average Backups 9 | 2 9 9 11 Power . | . . . . Propulsion 1 | 1 2 . . Utility 3 | . 3 4 4 Weapon 2 | . 1 3 6 Tool/Special . | . . . . Unused Backups 12 | . 5 . 7 Power . | . . . . Propulsion 3 | . 3 . . Utility 3 | . 1 . 2 Weapon 5 | . 1 . 4 Tool/Special 1 | . . . 1 Average Slot Usage (%) 94 | . 98 97 52 Engine 12 | . 12 14 5 Treads 2 | . 3 . 5 Leg 21 | . 24 20 6 Wheel 2 | . . 5 . Device 3 | . 6 . . Storage 13 | . 14 14 9 Protection 9 | . 6 14 9 Energy Gun 3 | . 6 . . Ballistic Gun 22 | . 21 27 4 Peak Build Rating 81 | 6 10 21 81 Average Rating 14 | 4 8 14 65 On Entrance 8 | . 6 10 19 Avg Prop Armor Cover (%) 6 | . . 7 5 Naked Turns . | . . . . Heaviest Build 86 | 12 28 35 86 Greatest Support 40 | 40 40 20 24 Greatest Overweight (x) 9 | . 3 3 9 Average Overweight (x) . | . . 1 3 Largest Inventory Capacity 15 | 8 15 15 15 Average Capacity 10 | 7 9 11 15 Most Carried 15 | 5 10 15 15 Average Carried 10 | 3 9 11 12 Final Capacity 15 | 8 10 15 15 Final Carried 15 | 5 10 15 14 Class Distribution -------------------- 93% | Mutant 6% | Scavenger-Mutant Dominant Class ---------------- Mutant | -10/Materials Mutant | -10/Subcaves Mutant | -8/Materials Resources | -11 -10 -10 -8 ----------- Run | Yrd Mat Sub Mat Matter Collected 974 | 224 453 260 37 Remotely . | . . . . Salvage Created 762 | 17 589 156 . Parts 54 | 4 34 16 . Haulers Intercepted 2 | . 2 . . Recyclers Shooed 1 | 1 . . . Parts Field Recycled . | . . . . Retrieved Matter . | . . . . Parts Self-Destructed 11 | . . 11 . Prevented . | . . . . Parts Restored . | . . . . Kills | -11 -10 -10 -8 ------- Run | Yrd Mat Sub Mat Combat Hostiles Destroyed 23 | . 13 10 . Guns 18 | . 10 8 . AOE 5 | . 3 2 . Classes Destroyed 6 | 1 4 1 . Tunneler 1 | 1 . . . Hauler 2 | . 2 . . Operator 1 | . 1 . . Swarmer 10 | . 3 7 . Grunt 10 | . 10 . . Subdweller 3 | . . 3 . Best Kill Streak 5 | 1 5 4 . Combat Bots Only 5 | . 5 4 . Max Kills in Single Turn 3 | 1 3 1 . Gunslinging . | . . . . Exploded 3 | . 3 1 . Melee . | . . . . Uniques/NPCs Destroyed . | . . . . Combat | -11 -10 -10 -8 -------- Run | Yrd Mat Sub Mat Hostile Shots Fired 150 | . 86 42 22 Missed 34 | . 20 10 4 Hits 116 | . 66 32 18 Projectile 116 | . 66 32 18 Critical Strikes 1 | . 1 . . Actively Blocked 2 | . . 2 . Damage Taken 1690 | . 820 593 277 Core 203 | . 138 65 . Absorbed by Shields . | . . . . Redirected to Shielding 51 | . 11 40 . Regen/Repaired (Parts) 25 | . . . 25 Core Remaining (%) 59 | 100 . 18 . Volleys Fired 90 | 2 61 26 1 Largest 2 | 2 2 2 2 Hottest 90 | 40 90 53 43 Shots Fired 170 | 4 117 47 2 Gun 163 | 4 116 41 2 Cannon . | . . . . Launcher 7 | . 1 6 . Special . | . . . . Kinetic 127 | 4 80 41 2 Thermal 36 | . 36 . . Explosive 7 | . 1 6 . Electromagnetic . | . . . . Robot Hit Streak 12 | 3 12 11 1 Robot Miss Streak 7 | . 7 5 2 Penetration Max . | . . . . Secondary Targets 3 | . 3 . . Max Gunslinging Chain 1 | . 1 . . Shots Hit Robots 118 | 3 82 32 1 Core Hits 45 | 1 30 14 . Critical Kills . | . . . . Critical Parts Destroyed 1 | . 1 . . Critical Strikes 5 | . 5 . . Burn 4 | . 4 . . Destroy 1 | . 1 . . Melee Attacks . | . . . . Impact . | . . . . Slashing . | . . . . Piercing . | . . . . Sneak Attacks . | . . . . Combat Hostiles . | . . . . Follow-up Attacks . | . . . . Damage Inflicted 1957 | 35 1078 838 6 Guns 1356 | 35 966 349 6 Cannons . | . . . . Explosions 601 | . 112 489 . Melee . | . . . . Ramming . | . . . . Kinetic 1089 | 35 699 349 6 Thermal 267 | . 267 . . Explosive 601 | . 112 489 . Electromagnetic . | . . . . Impact . | . . . . Slashing . | . . . . Piercing . | . . . . Highest Corruption 2 | . 2 2 . Average Corruption 2 | . 2 2 . Corruption Purged . | . . . . Corruption Blocked . | . . . . Effects 20 | . 3 17 . Message Errors 6 | . 2 4 . Matter Fused 4 | . . 4 . Heat Flow Errors 3 | . . 3 . Energy Discharges 2 | . . 2 . Data Loss (minor) 4 | . 1 3 . Alerts 1 | . . 1 . Overload Shots . | . . . . Overflow Damage . | . . . . Projectiles . | . . . . Explosions . | . . . . Melee . | . . . . Knockbacks . | . . . . Impact . | . . . . Kinetic . | . . . . Secondary . | . . . . Self-Inflicted Damage . | . . . . Shots . | . . . . Rammed . | . . . . Targets Rammed . | . . . . Kicked . | . . . . Crushed . | . . . . Highest Temperature 181 | . 150 181 2 Average Temperature 39 | . 34 89 1 Received Heat Transfer 576 | . 444 114 18 Siege Activations . | . . . . Martial Activations . | . . . . Shielding Activations . | . . . . Robots Disrupted . | . . . . Combat Hostiles . | . . . . Robots Corrupted . | . . . . Combat Hostiles . | . . . . Parts Fried . | . . . . Impact Corruptions . | . . . . Robots Melted . | . . . . Combat Hostiles . | . . . . Parts Melted 2 | . 2 . . Heat Transferred 1038 | . 1038 . . Parts Sabotaged . | . . . . Parts Stolen . | . . . . Parts Stripped . | . . . . Power Chain Reactions . | . . . . Alert | -11 -10 -10 -8 ------- Run | Yrd Mat Sub Mat Maximum Alert Level . | . . . . Low Security (%) 100 | 100 100 . 100 Level 1 . | . . . . Level 2 . | . . . . Level 3 . | . . . . Level 4 . | . . . . Level 5 . | . . . . High Security . | . . . . Max Security . | . . . . Peak Influence 107 | 5 107 . 7 Initial . | . . . . Average 21 | . 25 . . Influence Increases 561 | 5 362 180 14 Destroy 0b10 Robot/C 400 | . 260 140 . Destroy 0b10 Robot/NC 30 | 5 15 . 10 Destroy Leader 78 | . 64 10 4 Successful Hack 5 | . 5 . . Destroy Structure 3 | . 3 . . Lose Combat Pursuer 45 | . 15 30 . Influence Decreases 561 | 5 362 180 14 Time Decay 516 | 5 317 180 14 Lost Part 45 | . 45 . . Squads Dispatched 5 | . 4 . 1 Investigation 3 | . 3 . . Extermination . | . . . . Reinforcement 2 | . 1 . 1 Assault . | . . . . Garrison . | . . . . Intercept . | . . . . Searches Triggered . | . . . . Construction Impeded . | . . . . Haulers Reinforced . | . . . . Active Scanning Responses . | . . . . Cargo Convoy Interrupts . | . . . . Stealth | -11 -10 -10 -8 --------- Run | Yrd Mat Sub Mat Distress Signals 2 | . 1 . 1 Communications Jammed . | . . . . Distress Signals . | . . . . Times Spotted 44 | . 26 13 5 Peak Tracking Total 6 | . 6 4 2 Tactical Retreats 2 | . 1 1 . Traps | -11 -10 -10 -8 ------- Run | Yrd Mat Sub Mat Traps Triggered 7 | . 5 2 . Indirectly . | . . . . Trap Hack Attempts . | . . . . Triggered . | . . . . Disarmed . | . . . . Reprogrammed . | . . . . Reused . | . . . . Traps Extracted . | . . . . Installed . | . . . . Triggered . | . . . . Machines | -11 -10 -10 -8 ---------- Run | Yrd Mat Sub Mat Machines Disabled . | . . . . Max in Single Turn . | . . . . Machines Repaired . | . . . . Machines Dismantled . | . . . . Machines Sabotaged . | . . . . Overloaded Fab Kills . | . . . . Hacking | -11 -10 -10 -8 --------- Run | Yrd Mat Sub Mat Machines Accessed 9 | . 7 2 . Terminals 7 | . 7 . . Fabricators . | . . . . Repair Stations . | . . . . Recycling Units . | . . . . Scanalyzers . | . . . . Garrison Access . | . . . . Total Hacks 19 | . 15 4 . Successful 9 | . 5 4 . Failed 10 | . 10 . . Catastrophic 4 | . 4 . . Database Lockouts . | . . . . Manual 12 | . 12 . . Terminals 15 | . 15 . . Fabricators . | . . . . Repair Stations . | . . . . Recycling Units . | . . . . Scanalyzers . | . . . . Garrison Access . | . . . . Terminal Hacks 8 | . 4 4 . Record 3 | . . 3 . Robot Analysis 2 | . 2 . . Alert Level 1 | . 1 . . Recall Investigation 1 | . 1 . . Proto ID Catalog 1 | . . 1 . Fabricator Hacks . | . . . . Repair Station Hacks . | . . . . Recycling Unit Hacks . | . . . . Scanalyzer . | . . . . Garrison Access Hacks . | . . . . Unauthorized Hacks 1 | . 1 . . Terminals 1 | . 1 . . Botnet 1 | . 1 . . Fabricators . | . . . . Repair Stations . | . . . . Recycling Units . | . . . . Scanalyzers . | . . . . Garrison Access . | . . . . Data Cores Recovered . | . . . . Used . | . . . . Hacking Detections 7 | . 7 . . Full Trace Events 1 | . 1 . . Feedback Events . | . . . . Feedback Blocked . | . . . . Robot Schematics Acquired . | . . . . Robots Built . | . . . . Authchips . | . . . . Time . | . . . . Total Robot Build Rating . | . . . . Part Schematics Acquired . | . . . . Parts Built . | . . . . Authchips . | . . . . Time . | . . . . Total Part Build Rating . | . . . . Part Studies Acquired . | . . . . Parts Repaired . | . . . . Time . | . . . . Parts Recycled . | . . . . Recycled Matter . | . . . . Retrieved Matter . | . . . . Retrieved Components . | . . . . Parts Scanalyzed . | . . . . Part Schematics Acquired . | . . . . Parts Damaged . | . . . . Bothacking | -11 -10 -10 -8 ------------ Run | Yrd Mat Sub Mat Used RIF Installer . | . . . . Robots Hacked . | . . . . Non-combat . | . . . . Combat . | . . . . Robot Hacks Applied . | . . . . Relay Couplers Released . | . . . . Fabnet Peak Effective % . | . . . . Robots Rewired . | . . . . Allies Hacked . | . . . . Hacks Repelled . | . . . . Allies | -11 -10 -10 -8 -------- Run | Yrd Mat Sub Mat Total Allies . | . . . . Largest Group . | . . . . Highest-Rated Group . | . . . . Highest-Rated Ally . | . . . . Total Orders . | . . . . Ally Attacks 3 | . . . 3 Total Damage 82 | . . . 82 Kills 2 | . . . 2 Allies Corrupted . | . . . . Allies Melted . | . . . . Borg Created 2 | . . . 2 Largest Collective 2 | . . . 2 Intel | -11 -10 -10 -8 ------- Run | Yrd Mat Sub Mat Active Infowar (turns) 812 | . 812 . . Seismic 812 | . 812 . . Robot Analysis Total 2 | . 2 . . Derelict Logs Recovered 2 | . . 2 . Drone Launches . | . . . . Drone Recoveries . | . . . . Exploration | -11 -10 -10 -8 ------------- Run | Yrd Mat Sub Mat Turns Passed 3174 | 88 1610 1228 248 Spaces Moved 1809 | 45 999 697 68 Core 4 | 3 1 . . Treads 137 | 42 62 . 33 Legs 1274 | . 936 327 11 Wheels 370 | . . 370 . Hover 24 | . . . 24 Flight . | . . . . Fastest Speed 50 | 50 120 120 225 Average Speed 153 | 152 135 162 334 Slowest Speed 630 | 160 260 330 630 Overloaded Moves . | . . . . Propulsion Burnouts . | . . . . Robots Hopped . | . . . . Potential Cave-ins . | . . . . Cave-ins Triggered . | . . . . Exploration Rate (%) 36 | 4 99 36 8 Regions Visited 3 Branch Regions 1 Pre-discovered Areas 1 | . . 1 . Known Exits Taken . | . . . . Unknown Exits Taken 3 | 1 1 1 . Scrap Searched 2 | . . 2 . Spaces Dug . | . . . . Terrain Destroyed 22 | . 2 20 . Melee . | . . . . Projectile . | . . . . AOE 22 | . 2 20 . Terrain Rammed . | . . . . Walls Destroyed . | . . . . Machines Disabled . | . . . . Actions | -11 -10 -10 -8 --------- Run | Yrd Mat Sub Mat Total 2029 | 57 1143 747 82 Wait 45 | . 33 12 . Move 1806 | 44 998 696 68 Hop . | . . . . Pick Up 28 | 5 17 4 2 Fast Attach 14 | 6 3 1 4 Attach 7 | . 3 3 1 Detach 2 | . . . 2 Swap 19 | . 15 4 . Drop 16 | . 13 1 2 Fire 90 | 2 61 26 1 Melee . | . . . . Ram . | . . . . Kick . | . . . . Crush . | . . . . Escape Stasis . | . . . . Rewire . | . . . . Trap . | . . . . Miscellaneous 2 | . . . 2 Route ------- -11/Scrapyard -10/Materials (discovered 5 exits: [*Mat x3] / [*Min] / *Sub) -10/Subcaves -8/Materials (discovered 1 exit: Fac) History --------- Turn | Location | Event 10 | -11/Scrapyard | Discovered new exit (range 14) 89 | -11/Scrapyard | Entered Materials 318 | -10/Materials | Lost 4 parts (1p2n1w) 341 | -10/Materials | Build established: Mutant 668 | -10/Materials | Discovered new exit (range 15) 741 | -10/Materials | Discovered new exit (range 9) 777 | -10/Materials | Discovered new exit (range 13) 798 | -10/Materials | Core integrity fell below 50% 949 | -10/Materials | Discovered new exit (range 12) 1691 | -10/Materials | Discovered new exit (range 5) 1699 | -10/Materials | Entered Subcaves 1700 | -10/Subcaves | Approached by a straggling Scientist 1707 | -10/Subcaves | Learned Materials stockpile data 1845 | -10/Subcaves | Learned location of 1 exit from Materials 1933 | -10/Subcaves | Shifting Twisted Machinery released Humpback 1936 | -10/Subcaves | Shifting Twisted Machinery released Sub. Monowheel 2186 | -10/Subcaves | Core integrity fell below 20% 2194 | -10/Subcaves | Shifting Twisted Machinery released Mak. Light Armor Plating 2325 | -10/Subcaves | Lost 3 parts (2n1w) 2341 | -10/Subcaves | Shifting Twisted Machinery released Sub. Laser 2515 | -10/Subcaves | Visited 4L-MR0's lab 2527 | -10/Subcaves | Found Prototype Special Melee Weapon 2731 | -10/Subcaves | Visited Clippyterm 2734 | -10/Subcaves | Learned Factory garrison access intel 2799 | -10/Subcaves | Discovered new exit (range 16) 2853 | -10/Subcaves | Learned location of Zion (-7) 2853 | -10/Subcaves | Met a Zionite searching for "candidates" 2927 | -10/Subcaves | Entered Materials 2927 | -8/Materials | Evolved 4 slots: Propulsion x1, Weapon x3 2928 | -8/Materials | Identified exit to Factory 2980 | -8/Materials | Identified 1B-0RG's Assimilator 2993 | -8/Materials | Assimilating Commando 3a into Collective. 3079 | -8/Materials | Assimilating Defender 3a into Collective. 3175 | -8/Materials | Self-destructed Last Messages --------------- 03073_ Imp. Ion Engine destroyed. 03079_ 1B-0RG's Assimilator injects Defender 3a to begin assimilation process, ETC: 14. 03093_ Borg Defender 3a assimilation complete, grew Sfc. Borg Fist, Sfc. Targeting Obfuscator. 03097_ Acquired Airjet. Drag warning: You are moving via airborne propulsion while non-airborne propulsion attached, which reduces your speed. See your non-airborne propulsion's Drag stat. 03115_ K-01 Serf collects debris. 03124_ Acquired Airjet. 03156_ K-01 Serf collects debris. 03157_ W-25 Informer sends out distress signal. 03159_ K-01 Serf cleans the Terminal. 03162_ W-25 Informer suffers critical hit (Smash). 03162_ W-25 Informer destroyed. 03168_ Acquired 19 matter. Map ----- +----------------------------------------------------+ | ???????????????????????????#???# #??????????????? | | ???????????????????????????#T??# #??????????????? | | ???????????????????????##### "## ######?????????? | | ???????????????????????? #?????????? | | ???????????????????????????????# #?????????? | | ???????????????????????????????# #?????????? | | ???????????????????????????????# ###########???? | | ???????????????????????????????# # #???? | | ???????????????????????????????# # #???? | | ???????????????????????????????# + #???? | | ???????????????????????????????# # #???? | | ???????????????????????????????# # #???? | | ???????????????????????????????# # #???? | | ???????????????????????????????# # #???? | | ???????????????????????????????# # #???? | | ???????????????????????????????# ###########???? | | ???????????????????????????????# #?????????????? | | ???????????????????????????????# #?????????????? | | ???????????????????????????????# #?????????????? | | ???????????????????????????????# ########??????? | | ?????????????????????########### # #??????? | | ?????????????????????# # # #??????? | | ?????????????????????# """"" # # #??????? | | ?????????????????????# ""T""h + + !/ #??????? | | ?????????????????????# !Y # # ! #??????? | | ?????????????????????####@###### # != #??????? | | ?????????????????]??????# #????# #### ###??????? | | ????????????????????????# #????# #??###????????? | | ????????????????????????# #????# #?????????????? | | ????????????????????????# #????# #?????????????? | | ????????????????????????# #????# #?????????????? | | ???????????????????????? +????# #?????????????? | | ???????????????????????? #????# #?????????????? | | ???????????????????????? +????# #?????????????? | | ???????????????????????? ?????# #?????????????? | | ???????????????????????? ?????# #?????????????? | | ???????????????????????? ?????# #?????????????? | | ???????????????????????? ?????# #?????????????? | | ??????